{"text_format":"3","workbook":"xlsx","n_sheets":1,"sheets":["Zoznam potravín"],"not_rendered":{"images":1,"defined_names":3},"read":"whole","date_system":"1900"}

{"sheet":"Zoznam potravín","index":0,"n_rows":31,"n_cols":8,"rows_kept":31}
[null,"Zoznam potravín"]
[null,"DÁTUM"]
[null,"Kúpené?","Položka","Kategória","Množstvo","Cena","Navýšená cena","Značka/poznámky"]
[null,null,"Pomaranče","Ovocie a zelenina",null,null,{"$f":"IFERROR(SUM(ZoznamPotravín[[#This Row],[Množstvo]]*ZoznamPotravín[[#This Row],[Cena]]), \"\")","v":{"v":0,"d":"0.00 EUR"}}]
[null,null,"Jablká","Ovocie a zelenina",null,null,{"$f":"IFERROR(SUM(ZoznamPotravín[[#This Row],[Množstvo]]*ZoznamPotravín[[#This Row],[Cena]]), \"\")","v":{"v":0,"d":"0.00 EUR"}}]
[null,null,"Banány","Ovocie a zelenina",null,null,{"$f":"IFERROR(SUM(ZoznamPotravín[[#This Row],[Množstvo]]*ZoznamPotravín[[#This Row],[Cena]]), \"\")","v":{"v":0,"d":"0.00 EUR"}}]
[null,null,"Šalát","Ovocie a zelenina",null,null,{"$f":"IFERROR(SUM(ZoznamPotravín[[#This Row],[Množstvo]]*ZoznamPotravín[[#This Row],[Cena]]), \"\")","v":{"v":0,"d":"0.00 EUR"}}]
[null,null,"Rajčiny","Ovocie a zelenina",null,null,{"$f":"IFERROR(SUM(ZoznamPotravín[[#This Row],[Množstvo]]*ZoznamPotravín[[#This Row],[Cena]]), \"\")","v":{"v":0,"d":"0.00 EUR"}},"  "]
[null,null,"Mlieko ","Mliečne výrobky",null,null,{"$f":"IFERROR(SUM(ZoznamPotravín[[#This Row],[Množstvo]]*ZoznamPotravín[[#This Row],[Cena]]), \"\")","v":{"v":0,"d":"0.00 EUR"}}]
[null,null,"Syr","Mliečne výrobky",null,null,{"$f":"IFERROR(SUM(ZoznamPotravín[[#This Row],[Množstvo]]*ZoznamPotravín[[#This Row],[Cena]]), \"\")","v":{"v":0,"d":"0.00 EUR"}}]
[null,null,"Vajcia","Mliečne výrobky",null,null,{"$f":"IFERROR(SUM(ZoznamPotravín[[#This Row],[Množstvo]]*ZoznamPotravín[[#This Row],[Cena]]), \"\")","v":{"v":0,"d":"0.00 EUR"}}]
[null,null,"Tvaroh","Mliečne výrobky",null,null,{"$f":"IFERROR(SUM(ZoznamPotravín[[#This Row],[Množstvo]]*ZoznamPotravín[[#This Row],[Cena]]), \"\")","v":{"v":0,"d":"0.00 EUR"}}]
[null,null,"Hovädzie mäso","Mäso",null,null,{"$f":"IFERROR(SUM(ZoznamPotravín[[#This Row],[Množstvo]]*ZoznamPotravín[[#This Row],[Cena]]), \"\")","v":{"v":0,"d":"0.00 EUR"}}]
[null,null,"Hydina","Mäso",null,null,{"$f":"IFERROR(SUM(ZoznamPotravín[[#This Row],[Množstvo]]*ZoznamPotravín[[#This Row],[Cena]]), \"\")","v":{"v":0,"d":"0.00 EUR"}}]
[null,null,"Šunka","Mäso",null,null,{"$f":"IFERROR(SUM(ZoznamPotravín[[#This Row],[Množstvo]]*ZoznamPotravín[[#This Row],[Cena]]), \"\")","v":{"v":0,"d":"0.00 EUR"}}]
[null,null,"Džús","Nápoje",null,null,{"$f":"IFERROR(SUM(ZoznamPotravín[[#This Row],[Množstvo]]*ZoznamPotravín[[#This Row],[Cena]]), \"\")","v":{"v":0,"d":"0.00 EUR"}}]
[null,null,"Káva","Nápoje",null,null,{"$f":"IFERROR(SUM(ZoznamPotravín[[#This Row],[Množstvo]]*ZoznamPotravín[[#This Row],[Cena]]), \"\")","v":{"v":0,"d":"0.00 EUR"}}]
[null,null,"Čaj","Nápoje",null,null,{"$f":"IFERROR(SUM(ZoznamPotravín[[#This Row],[Množstvo]]*ZoznamPotravín[[#This Row],[Cena]]), \"\")","v":{"v":0,"d":"0.00 EUR"}}]
[null,null,"Voda","Nápoje",null,null,{"$f":"IFERROR(SUM(ZoznamPotravín[[#This Row],[Množstvo]]*ZoznamPotravín[[#This Row],[Cena]]), \"\")","v":{"v":0,"d":"0.00 EUR"}}]
[null,null,"Rezance","Cestoviny",null,null,{"$f":"IFERROR(SUM(ZoznamPotravín[[#This Row],[Množstvo]]*ZoznamPotravín[[#This Row],[Cena]]), \"\")","v":{"v":0,"d":"0.00 EUR"}}]
[null,null,"Ryža","Cestoviny",null,null,{"$f":"IFERROR(SUM(ZoznamPotravín[[#This Row],[Množstvo]]*ZoznamPotravín[[#This Row],[Cena]]), \"\")","v":{"v":0,"d":"0.00 EUR"}}]
[null,null,"Konzerva","Polievka",null,null,{"$f":"IFERROR(SUM(ZoznamPotravín[[#This Row],[Množstvo]]*ZoznamPotravín[[#This Row],[Cena]]), \"\")","v":{"v":0,"d":"0.00 EUR"}}]
[null,null,"Suchá zmes","Polievka",null,null,{"$f":"IFERROR(SUM(ZoznamPotravín[[#This Row],[Množstvo]]*ZoznamPotravín[[#This Row],[Cena]]), \"\")","v":{"v":0,"d":"0.00 EUR"}}]
[null,null,"Chlieb","Pečivo",null,null,{"$f":"IFERROR(SUM(ZoznamPotravín[[#This Row],[Množstvo]]*ZoznamPotravín[[#This Row],[Cena]]), \"\")","v":{"v":0,"d":"0.00 EUR"}}]
[null,null,"Zemiakové lupienky","Občerstvenie",null,null,{"$f":"IFERROR(SUM(ZoznamPotravín[[#This Row],[Množstvo]]*ZoznamPotravín[[#This Row],[Cena]]), \"\")","v":{"v":0,"d":"0.00 EUR"}}]
[null,null,"Praclíky","Občerstvenie",null,null,{"$f":"IFERROR(SUM(ZoznamPotravín[[#This Row],[Množstvo]]*ZoznamPotravín[[#This Row],[Cena]]), \"\")","v":{"v":0,"d":"0.00 EUR"}}]
[null,null,"Zmrzlina","Občerstvenie",null,null,{"$f":"IFERROR(SUM(ZoznamPotravín[[#This Row],[Množstvo]]*ZoznamPotravín[[#This Row],[Cena]]), \"\")","v":{"v":0,"d":"0.00 EUR"}}]
[null,null,"Sušienky","Občerstvenie",null,null,{"$f":"IFERROR(SUM(ZoznamPotravín[[#This Row],[Množstvo]]*ZoznamPotravín[[#This Row],[Cena]]), \"\")","v":{"v":0,"d":"0.00 EUR"}}]
[null,null,"Papierové taniere","Jednorazové potreby",null,null,{"$f":"IFERROR(SUM(ZoznamPotravín[[#This Row],[Množstvo]]*ZoznamPotravín[[#This Row],[Cena]]), \"\")","v":{"v":0,"d":"0.00 EUR"}}]
[null,null,"Obrúsky","Jednorazové potreby",null,null,{"$f":"IFERROR(SUM(ZoznamPotravín[[#This Row],[Množstvo]]*ZoznamPotravín[[#This Row],[Cena]]), \"\")","v":{"v":0,"d":"0.00 EUR"}}]
[{"$nulls":6},{"$f":"SUBTOTAL(109,ZoznamPotravín[Navýšená cena])","v":{"v":0,"d":"0.00 EUR"}}]